{"text_format":"1","workbook":"xlsx","n_sheets":7,"sheets":["Overview","Find & Replace","REPLACE","SUBSTITUTE","Flash Fill","RIFGT","VBA"],"not_rendered":{"charts":0,"images":0,"macros":1,"external_links":0,"defined_names":0,"comments":0,"pivot_tables":0},"unopened":[],"bounds":{"document_bytes":16777216,"sheet_cells":100000,"rows_first":2000,"rows_last":500,"rows_between":2000,"halvings":0,"cell_chars":16384,"cell_head_chars":4096},"cells_cut":0,"cells_raw":0,"read":"whole","date_system":"1900"}

{"sheet":"Overview","index":0,"n_rows":11,"n_cols":3,"rows_kept":11,"cut":false,"hidden":false,"merged":[[1,1,1,2]]}
[]
[null,"Overview"]
[]
[null,"Product","Code"]
[null,"Eraser","#4227"]
[null,"Ruler","#4685"]
[null,"Gel Pen","#3021"]
[null,"Ballpoint Pen","#3196"]
[null,"B2 Pencil","#4356"]
[null,"B3 Pencil","#4931"]
[null,"Sharpner","#3953"]

{"sheet":"Find & Replace","index":1,"n_rows":11,"n_cols":3,"rows_kept":11,"cut":false,"hidden":false,"merged":[[1,1,1,2]]}
[]
[null,"Apply Find & Select Command to Replace Special Characters"]
[]
[null,"Product","Code"]
[null,"Eraser",4227]
[null,"Ruler",4685]
[null,"Gel Pen",3021]
[null,"Ballpoint Pen",3196]
[null,"B2 Pencil",4356]
[null,"B3 Pencil",4931]
[null,"Sharpner",3953]

{"sheet":"REPLACE","index":2,"n_rows":11,"n_cols":4,"rows_kept":11,"cut":false,"hidden":false,"merged":[[1,1,1,3]]}
[]
[null,"Apply the REPLACE Function to Replace Special Characters"]
[]
[null,"Product","Code","Remarks"]
[null,"Eraser","#4227",{"$f":"REPLACE(C5,1,1,\"\")","v":"4227"}]
[null,"Ruler","#4685",{"$f":"REPLACE(C6,1,1,\"\")","v":"4685"}]
[null,"Gel Pen","#3021","3021"]
[null,"Ballpoint Pen","#3196","3196"]
[null,"B2 Pencil","#4356","4356"]
[null,"B3 Pencil","#4931","4931"]
[null,"Sharpner","#3953","3953"]

{"sheet":"SUBSTITUTE","index":3,"n_rows":11,"n_cols":4,"rows_kept":11,"cut":false,"hidden":false,"merged":[[1,1,1,3]]}
[]
[null,"Use of the SUBSTITUTE Function to Replace Special Characters"]
[]
[null,"Product","Code","Remarks"]
[null,"Eraser","#4227",{"$f":"SUBSTITUTE(C5, \"#\", \"\")","v":"4227"}]
[null,"Ruler","#4685",{"$f":"SUBSTITUTE(C6, \"#\", \"\")","v":"4685"}]
[null,"Gel Pen","#3021","3021"]
[null,"Ballpoint Pen","#3196","3196"]
[null,"B2 Pencil","#4356","4356"]
[null,"B3 Pencil","#4931","4931"]
[null,"Sharpner","#3953","3953"]

{"sheet":"Flash Fill","index":4,"n_rows":11,"n_cols":4,"rows_kept":11,"cut":false,"hidden":false,"merged":[[1,1,1,3]]}
[]
[null,"Perform the Flash Fill Command to Replace Special Characters"]
[]
[null,"Product","Code","Remarks"]
[null,"Eraser","#4227",4227]
[null,"Ruler","#4685",4685]
[null,"Gel Pen","#3021",3021]
[null,"Ballpoint Pen","#3196",3196]
[null,"B2 Pencil","#4356",4356]
[null,"B3 Pencil","#4931",4931]
[null,"Sharpner","#3953",3953]

{"sheet":"RIFGT","index":5,"n_rows":11,"n_cols":4,"rows_kept":11,"cut":false,"hidden":false,"merged":[[1,1,1,3]]}
[]
[null,"Using RIGHT and LEN Functions to Replace Special Characters "]
[]
[null,"Product","Code","Remarks"]
[null,"Eraser","#4227",{"$f":"RIGHT(C5,LEN(C5)-1)","v":"4227"}]
[null,"Ruler","#4685",{"$f":"RIGHT(C6,LEN(C6)-1)","v":"4685"}]
[null,"Gel Pen","#3021","3021"]
[null,"Ballpoint Pen","#3196","3196"]
[null,"B2 Pencil","#4356","4356"]
[null,"B3 Pencil","#4931","4931"]
[null,"Sharpner","#3953","3953"]

{"sheet":"VBA","index":6,"n_rows":11,"n_cols":4,"rows_kept":11,"cut":false,"hidden":false,"merged":[[1,1,1,3]]}
[]
[null,"Run a VBA Code to Replace Special Characters"]
[]
[null,"Product","Code","Remarks"]
[null,"Eraser","#4227",{"$f":"RemoveSpecial(C5)","v":"4227"}]
[null,"Ruler","#4685",{"$f":"RemoveSpecial(C6)","v":"4685"}]
[null,"Gel Pen","#3021","3021"]
[null,"Ballpoint Pen","#3196","3196"]
[null,"B2 Pencil","#4356","4356"]
[null,"B3 Pencil","#4931","4931"]
[null,"Sharpner","#3953","3953"]